Cogmind - Beta 17.1 @@@ ROGUE MODE // 2026.09.09 @ 07:43:31 Player: rootmos Result: Destroyed by DE-6LB(R) with Subdweller Machine Gun Performance ------------- Evolutions (0) 0 Regions Visited (2) 400 Robots Destroyed (2) 10 Value Destroyed (80) 80 Prototype IDs (0) 0 Alien Tech Used (0) 0 Bonus (0) 0 TOTAL SCORE: 490 Bonus ------- None Cogmind --------- Core Integrity 0/250 Matter 235/300 Energy 124/125 System Corruption 1% Temperature Cool (0) Movement Core (200) Ox3 Location -10/Subcaves Parts ------- > --- POWER (1) -------- Light Ion Engine > --- PROPULSION (2) --- (None) > --- UTILITY (2) ------ Small Storage Unit > --- WEAPON (2) ------- Medium Laser Salvaging Laser > --- INVENTORY (8) ---- Light Ion Engine Aluminum Leg Aluminum Leg Improved Heat Sink Peak State ------------ > --- POWER ------------ Ion Engine > --- PROPULSION ------- Aluminum Leg Aluminum Leg > --- UTILITY ---------- Improved Heat Sink Small Storage Unit > --- WEAPON ----------- EM Pulse Gun Medium Laser > --- INVENTORY -------- Light Ion Engine Light Ion Engine Aluminum Leg Aluminum Leg Improved Heat Sink Medium Laser Salvaging Laser Grenade Launcher [Rating: 10] Favorites ----------- Power Ion Engine Engine Ion Engine Propulsion Aluminum Leg Leg Aluminum Leg Utility Small Storage Unit Device Improved Heat Sink Storage Small Storage Unit Weapon Medium Laser Energy Gun Medium Laser Launcher Grenade Launcher Build | -11 -10 -10 ------- Run | Yrd Mat Sub Slots Evolved . | . . . Power . | . . . Propulsion . | . . . Utility . | . . . Weapon . | . . . Parts Attached 9 | . 6 3 Power 2 | . 1 1 Engine 2 | . 1 1 Core . | . . . Reactor . | . . . Propulsion 1 | . 1 . Treads . | . . . Leg 1 | . 1 . Wheel . | . . . Hover . | . . . Flight . | . . . Utility 1 | . 1 . Device 1 | . 1 . Storage . | . . . Processor . | . . . Hackware . | . . . Protection . | . . . Artifact . | . . . Weapon 5 | . 3 2 Energy Gun 4 | . 3 1 Energy Cannon . | . . . Ballistic Gun . | . . . Ballistic Cannon . | . . . Launcher 1 | . . 1 Special Weapon . | . . . Impact Weapon . | . . . Slashing Weapon . | . . . Piercing Weapon . | . . . Special Melee Weapon . | . . . Unidentified Prototypes . | . . . Parts Lost 7 | . . 7 Power 1 | . . 1 Propulsion 2 | . . 2 Utility 1 | . . 1 Weapon 3 | . . 3 Highest Loss Streak 7 | . . 7 To Critical Strikes . | . . . Average Backups 6 | . 6 7 Power 1 | . 1 2 Propulsion 2 | . 2 2 Utility . | . . 1 Weapon 2 | . 1 2 Tool/Special . | . . . Unused Backups 6 | . 2 4 Power 1 | . . 1 Propulsion 4 | . 2 2 Utility 1 | . . 1 Weapon . | . . . Tool/Special . | . . . Average Slot Usage (%) 94 | . 96 90 Engine 12 | . 14 11 Leg 26 | . 28 23 Device 12 | . 11 13 Storage 14 | . 14 14 Energy Gun 27 | . 28 25 Peak Build Rating 10 | . 10 10 Average Rating 8 | . 8 8 On Entrance 7 | 6 6 10 Avg Prop Armor Cover (%) . | . . . Naked Turns . | . . . Heaviest Build 16 | 12 15 16 Greatest Support 20 | 20 20 20 Greatest Overweight (x) 3 | . . 3 Average Overweight (x) . | . . . Largest Inventory Capacity 8 | . 8 8 Average Capacity 8 | . 8 8 Most Carried 8 | . 8 8 Average Carried 6 | . 6 7 Final Capacity 8 | 8 8 8 Final Carried 8 | 6 8 4 Class Distribution -------------------- 100% | Mutant Dominant Class ---------------- Mutant | -10/Materials Mutant | -10/Subcaves Resources | -11 -10 -10 ----------- Run | Yrd Mat Sub Matter Collected 260 | 200 60 . Remotely . | . . . Salvage Created 78 | . . 78 Parts 1 | . . 1 Haulers Intercepted . | . . . Recyclers Shooed . | . . . Parts Field Recycled . | . . . Retrieved Matter . | . . . Parts Self-Destructed 2 | . . 2 Prevented . | . . . Parts Restored . | . . . Kills | -11 -10 -10 ------- Run | Yrd Mat Sub Combat Hostiles Destroyed 2 | . . 2 AOE 2 | . . 2 Classes Destroyed 1 | . . 1 Subdweller 2 | . . 2 Best Kill Streak 2 | . . 2 Combat Bots Only 2 | . . 2 Max Kills in Single Turn 1 | . . 1 Gunslinging . | . . . Exploded 1 | . . 1 Melee . | . . . Uniques/NPCs Destroyed . | . . . Combat | -11 -10 -10 -------- Run | Yrd Mat Sub Hostile Shots Fired 47 | . 1 46 Missed 13 | . . 13 Hits 34 | . 1 33 Projectile 34 | . 1 33 Critical Strikes 3 | . . 3 Damage Taken 917 | . 57 860 Core 260 | . 14 246 Absorbed by Shields . | . . . Core Remaining (%) 100 | 100 . . Volleys Fired 10 | . 2 8 Largest 2 | . 2 2 Hottest 90 | . 90 90 Shots Fired 20 | . 4 16 Gun 15 | . 4 11 Cannon . | . . . Launcher 5 | . . 5 Special . | . . . Kinetic . | . . . Thermal 12 | . 2 10 Explosive 5 | . . 5 Electromagnetic 3 | . 2 1 Robot Hit Streak 5 | . 1 5 Robot Miss Streak 3 | . 3 1 Penetration Max . | . . . Secondary Targets . | . . . Shots Hit Robots 11 | . 1 10 Core Hits 4 | . . 4 Critical Kills . | . . . Critical Parts Destroyed . | . . . Critical Strikes . | . . . Melee Attacks . | . . . Impact . | . . . Slashing . | . . . Piercing . | . . . Sneak Attacks . | . . . Combat Hostiles . | . . . Follow-up Attacks . | . . . Damage Inflicted 380 | . 23 357 Guns 82 | . 23 59 Cannons . | . . . Explosions 298 | . . 298 Melee . | . . . Ramming . | . . . Kinetic . | . . . Thermal 71 | . 12 59 Explosive 298 | . . 298 Electromagnetic 11 | . 11 . Impact . | . . . Slashing . | . . . Piercing . | . . . Highest Corruption 1 | . 1 1 Average Corruption 1 | . 1 1 Corruption Purged . | . . . Corruption Blocked . | . . . Effects 1 | . 1 . Message Errors 1 | . 1 . Overload Shots . | . . . Overflow Damage . | . . . Projectiles . | . . . Explosions . | . . . Melee . | . . . Knockbacks . | . . . Impact . | . . . Kinetic . | . . . Secondary . | . . . Self-Inflicted Damage 40 | . . 40 Shots 3 | . . 3 Rammed . | . . . Targets Rammed . | . . . Kicked . | . . . Crushed . | . . . Highest Temperature 251 | . . 251 Average Temperature 128 | . . 128 Received Heat Transfer 758 | . . 758 Siege Activations . | . . . Martial Activations . | . . . Shielding Activations . | . . . Robots Disrupted . | . . . Combat Hostiles . | . . . Robots Corrupted . | . . . Combat Hostiles . | . . . Parts Fried . | . . . Impact Corruptions . | . . . Robots Melted . | . . . Combat Hostiles . | . . . Parts Melted . | . . . Heat Transferred 210 | . 37 173 Parts Sabotaged . | . . . Parts Stolen . | . . . Parts Stripped . | . . . Power Chain Reactions . | . . . Alert | -11 -10 -10 ------- Run | Yrd Mat Sub Maximum Alert Level . | . . . Low Security (%) 100 | . 100 . Level 1 . | . . . Level 2 . | . . . Level 3 . | . . . Level 4 . | . . . Level 5 . | . . . High Security . | . . . Max Security . | . . . Peak Influence . | . . . Initial . | . . . Average . | . . . Influence Increases . | . . . Influence Decreases . | . . . Squads Dispatched . | . . . Investigation . | . . . Extermination . | . . . Reinforcement . | . . . Assault . | . . . Garrison . | . . . Intercept . | . . . Searches Triggered . | . . . Construction Impeded . | . . . Haulers Reinforced . | . . . Active Scanning Responses . | . . . Cargo Convoy Interrupts . | . . . Stealth | -11 -10 -10 --------- Run | Yrd Mat Sub Distress Signals 1 | . 1 . Communications Jammed . | . . . Distress Signals . | . . . Times Spotted 11 | . 3 8 Peak Tracking Total 5 | . 3 5 Tactical Retreats . | . . . Traps | -11 -10 -10 ------- Run | Yrd Mat Sub Traps Triggered 1 | . 1 . Indirectly . | . . . Trap Hack Attempts . | . . . Triggered . | . . . Disarmed . | . . . Reprogrammed . | . . . Reused . | . . . Traps Extracted . | . . . Installed . | . . . Triggered . | . . . Machines | -11 -10 -10 ---------- Run | Yrd Mat Sub Machines Disabled . | . . . Max in Single Turn . | . . . Machines Repaired . | . . . Machines Dismantled . | . . . Machines Sabotaged . | . . . Overloaded Fab Kills . | . . . Hacking | -11 -10 -10 --------- Run | Yrd Mat Sub Machines Accessed . | . . . Terminals . | . . . Fabricators . | . . . Repair Stations . | . . . Recycling Units . | . . . Scanalyzers . | . . . Garrison Access . | . . . Total Hacks . | . . . Successful . | . . . Failed . | . . . Catastrophic . | . . . Database Lockouts . | . . . Manual . | . . . Terminals . | . . . Fabricators . | . . . Repair Stations . | . . . Recycling Units . | . . . Scanalyzers . | . . . Garrison Access . | . . . Terminal Hacks . | . . . Fabricator Hacks . | . . . Repair Station Hacks . | . . . Recycling Unit Hacks . | . . . Scanalyzer . | . . . Garrison Access Hacks . | . . . Unauthorized Hacks . | . . . Terminals . | . . . Fabricators . | . . . Repair Stations . | . . . Recycling Units . | . . . Scanalyzers . | . . . Garrison Access . | . . . Data Cores Recovered . | . . . Used . | . . . Hacking Detections . | . . . Full Trace Events . | . . . Feedback Events . | . . . Feedback Blocked . | . . . Robot Schematics Acquired . | . . . Robots Built . | . . . Authchips . | . . . Time . | . . . Total Robot Build Rating . | . . . Part Schematics Acquired . | . . . Parts Built . | . . . Authchips . | . . . Time . | . . . Total Part Build Rating . | . . . Part Studies Acquired . | . . . Parts Repaired . | . . . Time . | . . . Parts Recycled . | . . . Recycled Matter . | . . . Retrieved Matter . | . . . Retrieved Components . | . . . Parts Scanalyzed . | . . . Part Schematics Acquired . | . . . Parts Damaged . | . . . Bothacking | -11 -10 -10 ------------ Run | Yrd Mat Sub Used RIF Installer . | . . . Robots Hacked . | . . . Non-combat . | . . . Combat . | . . . Robot Hacks Applied . | . . . Relay Couplers Released . | . . . Fabnet Peak Effective % . | . . . Robots Rewired . | . . . Allies Hacked . | . . . Hacks Repelled . | . . . Allies | -11 -10 -10 -------- Run | Yrd Mat Sub Total Allies . | . . . Largest Group . | . . . Highest-Rated Group . | . . . Highest-Rated Ally . | . . . Total Orders . | . . . Ally Attacks . | . . . Total Damage . | . . . Kills . | . . . Allies Corrupted . | . . . Allies Melted 1 | . . 1 Intel | -11 -10 -10 ------- Run | Yrd Mat Sub Active Infowar (turns) . | . . . Robot Analysis Total . | . . . Derelict Logs Recovered . | . . . Drone Launches . | . . . Drone Recoveries . | . . . Exploration | -11 -10 -10 ------------- Run | Yrd Mat Sub Turns Passed 416 | . 235 181 Spaces Moved 254 | 1 137 116 Core 19 | . . 19 Treads . | . . . Legs 235 | 1 137 97 Wheels . | . . . Hover . | . . . Flight . | . . . Fastest Speed 120 | 120 120 120 Average Speed 123 | 120 120 126 Slowest Speed 200 | 120 120 200 Overloaded Moves . | . . . Propulsion Burnouts . | . . . Robots Hopped . | . . . Potential Cave-ins . | . . . Cave-ins Triggered . | . . . Exploration Rate (%) 13 | 2 29 9 Regions Visited 2 Branch Regions 1 Pre-discovered Areas . | . . . Known Exits Taken . | . . . Unknown Exits Taken 2 | 1 1 . Scrap Searched . | . . . Spaces Dug . | . . . Terrain Destroyed 23 | . . 23 Melee . | . . . Projectile . | . . . AOE 23 | . . 23 Terrain Rammed . | . . . Walls Destroyed . | . . . Machines Disabled . | . . . Actions | -11 -10 -10 --------- Run | Yrd Mat Sub Total 340 | . 204 136 Wait 59 | . 51 8 Move 252 | . 136 116 Hop . | . . . Pick Up 4 | . 4 . Fast Attach 1 | . 1 . Attach 4 | . . 4 Detach . | . . . Swap 5 | . 5 . Drop 5 | . 5 . Fire 10 | . 2 8 Melee . | . . . Ram . | . . . Kick . | . . . Crush . | . . . Escape Stasis . | . . . Rewire . | . . . Trap . | . . . Miscellaneous . | . . . Route ------- -11/Scrapyard -10/Materials (discovered 2 exits: [*Mat] / [*Sub]) -10/Subcaves History --------- Turn | Location | Event 1 | -11/Scrapyard | Discovered new exit (range 0) 1 | -11/Scrapyard | Entered Materials 2 | -10/Materials | Met a group of wandering Federalists 104 | -10/Materials | Discovered new exit (range 15) 181 | -10/Materials | Discovered new exit (range 7) 236 | -10/Materials | Entered Subcaves 237 | -10/Subcaves | Continued accompanying wandering Federalists (3) 286 | -10/Subcaves | A Subdweller sparked back to life 286 | -10/Subcaves | A Subdweller sparked back to life 286 | -10/Subcaves | A Subdweller sparked back to life 300 | -10/Subcaves | Build established: Mutant 341 | -10/Subcaves | Lost 3 allies 362 | -10/Subcaves | Ambushed by Subdwellers from Twisted Machinery 368 | -10/Subcaves | Ambushed by Subdweller buried in earth 380 | -10/Subcaves | Core integrity fell below 50% 390 | -10/Subcaves | Core integrity fell below 20% 417 | -10/Subcaves | Destroyed by DE-6LB(R) with Subdweller Machine Gun Last Messages --------------- to move. 00286_ X5-9HY(R) creaks and sparks as it begins to move. 00286_ JF-EXX(R) creaks and sparks as it begins to move. 00289_ Critical hit (Meltdown: +290). 00293_ UQ-8MX(g) destroyed. 00353_ EM Pulse Gun destroyed. 00354_ Med. Laser destroyed. 00365_ 08-OLM(R) destroyed. 00367_ RU-6NI(R) affixes Scrap Shield Fragment to Scrap Shield. 00368_ RU-6NI(R) destroyed. 00369_ DE-6LB(R): "ARGHSUB!" 00375_ Critical hit (Meltdown: +270). 00376_ Ion Engine destroyed. 00377_ Grenade Launcher destroyed. 00381_ Aluminum Leg destroyed. 00391_ The unstable cave ceiling collapses. 00408_ Imp. Heat Sink destroyed. Map ----- +----------------------------------------------------+ | ????????# #??#### #?????????????????????????? | | ????????# #?## #?????????????????????????? | | ????????# #### ###???????????????????????? | | ????????## ### ##??????????????????????? | | ????????## ### ##????????? ????????? | | ????????# #????? ????????? | | ????????# ## #???????????? | | ????????## # ## ########%! ! " #????????????? | | ?????????# #####??????# &"& #????????????? | | ????????## ##????????? " "#????????????? | | ????##### ###???????# ## " ##????????????? | | ????# #??????## ##? # " #?????????????? | | ????# ##?????## #??? ?####?????????????? | | ???## ##?????# ##???? ?????????????????? | | ???# #?????# #??#""? ????????????????? | | ???# ## ##?????# ##? ???"???????????????? | | ???###?## #??????# ## ""??? ??????????????? | | ????????# #??????# """??????????????????? | | ????????## #??????# " "#??????????????????? | | ????????### ##????## ""##?????????????????? | | ????????# #????# """#?????????????????? | | ????????# #???## "##????????????????? | | ????????# #???? #????????????????? | | ????????# ##????# """"#????????????????? | | ???????## #???## " #?????????????????? | | ???###?# #??## @ " #?????????????????? | | ???# ## #?##R ## " " ????????????? | | ???# ### ######???"""" ?????????????? | | ???## ##?????????? ????????????????? | | ????## ##?????????????????????????????? | | ?????### ##??????????????????????????????? | | ???????## ##???????????????????????????????? | | ???????## " ##????????????????????????????????? | | ???????# ##?????????????????????????????????? | | ???????## " ####??????????????????????????????? | | ????????###""" ##"##?????????????????????????????? | | ??????????#" " # " #?????????????????????????????? | | ??????????## ##????????????????????????????? | | ?????????## " " ## ##???????????????????????? | | ?????????# " " ????????????????? | | ?????# # " ?????????????????? | | ?????## ## ## # # # ""??????????????????? | | ??????####?# ## ##????? ??????????????????? | | ???????????### ##?????????????????????????? | | ?????????????## #?????????????????????????? | | ??????????????# " ##?????????????????????????? | | ??????????????###" ###??????????????????????????? | | ????????????????"""##????????????????????????????? | | ???????????????? "##?????????????????????????????? | | ?????????????????????????????????????????????????? | +----------------------------------------------------+ Best States ------------- Heat Dissipation 39 Energy Generation 10 Energy Capacity 250 Matter Stores 300 Matter Capacity 300 Sight Range 16 Terrain Scan Density 10 Evasion (%) 55 Item Schematics ----------------- None Robot Schematics ------------------ None Fabricated ------------ Nothing Repaired ---------- Nothing Studied --------- None Alien Tech Used ----------------- None Achievements -------------- None Challenges ------------ None Game ------ Seed SchematicPointFemtoactuators Manual? 0 Play Time 00:09:31 Cumulative 127.6 hours Start 2026.09.09 @ 07:30:24 End 2026.09.09 @ 07:43:31 Sessions 2 Manual Loads 0 Difficulty Rogue Special Mode None Game No. 78 Rogue 43 Adventurer 0 Explorer 35 Win Type - Total 1 Types 1/0/0/0/0/0/0/0/0/0 Lore% 32 Gallery% 35 Achievement% 28 Wizard Run 0 Options --------- Layout 0 ASCII 1 Keyboard 1 Movement Vi Keybinds 1 Fullscreen 0 Font 20/SmallcapsGlow Map View 50x62 Zoom Use 0% Tactical HUD 1 Map Filters NONE Filters NONE Steam 0 RUN: 17884595-1f4a-47d3-a823-226d2d7f7bb2